bitfinex/quotes_BTCUSD_20210101
["timestamp","ask_amount","ask_price","bid_price","bid_amount"]
[1609484037819,0.362932,29166.0,29154.0,0.03346812]
[1609484038021,0.34810091,29165.0,29154.0,0.03346812]
[1609484038221,0.362932,29164.0,29151.0,0.03366812]
[1609484038961,0.43031639,29164.0,29151.0,0.03366812]
[1609484039156,0.362932,29162.0,29151.0,0.03366812]
[1609484039357,0.362932,29162.0,29151.0,0.0002]
[1609484039563,0.08,29163.0,29150.0,0.71896812]
[1609484039758,0.28,29163.0,29150.0,0.71896812]
[1609484040059,0.562932,29162.0,29150.0,0.71896812]
[1609484040261,0.562932,29162.0,29150.0,0.6855]
[1609484040262,0.26738439,29161.0,29150.0,0.6855]
[1609484040458,0.562932,29160.0,29150.0,0.6855]
[1609484040759,0.362932,29160.0,29150.0,0.6855]
[1609484041365,0.34738439,29161.0,29150.0,0.6855]
[1609484041558,0.28,29161.0,29150.0,0.6855]
[1609484041864,0.06738439,29160.0,29150.0,0.6855]
[1609484042060,0.06738439,29160.0,29151.0,0.315644]
[1609484042359,0.06738439,29160.0,29151.0,0.0002]
[1609484042761,0.06738439,29160.0,29150.0,0.6855]
[1609484043263,0.06738439,29160.0,29151.0,0.315644]
[1609484043459,0.06738439,29160.0,29151.0,0.0002]
[1609484043858,0.362932,29159.0,29151.0,0.0002]
[1609484044063,0.12475439,29160.0,29150.0,0.6855]
[1609484044261,0.05737,29160.0,29151.0,0.315644]
[1609484044462,0.05737,29160.0,29150.0,0.71896812]
[1609484044677,0.05737,29160.0,29151.0,0.0002]
[1609484044975,0.05737,29160.0,29151.0,0.03366812]
[1609484045177,0.14738439,29161.0,29152.0,0.315631]
[1609484045477,0.362932,29160.0,29151.0,0.0002]
[1609484045979,0.403242,29160.0,29151.0,0.0002]
[1609484046179,0.403242,29160.0,29150.0,0.6853]
[1609484046180,0.403242,29160.0,29150.0,0.6855]
[1609484048382,0.362932,29158.0,29150.0,0.6855]
[1609484048580,0.43031639,29158.0,29150.0,0.6855]
[1609484048983,0.362932,29156.0,29150.0,0.6855]
[1609484049286,0.362932,29154.0,29150.0,0.6855]
[1609484049886,0.362932,29154.0,29150.0,0.0004]
[1609484050085,0.362932,29154.0,29151.0,0.0108359]
[1609484050311,0.362932,29154.0,29151.0,0.0110359]
[1609484050612,0.362932,29152.0,29151.0,0.0110359]
[1609484050809,0.43031639,29152.0,29151.0,0.0110359]
[1609484052782,0.06738439,29152.0,29151.0,0.0110359]
[1609484053183,0.362932,29152.0,29151.0,0.0110359]
[1609484053883,0.563352,29152.0,29151.0,0.0110359]
[1609484057204,0.362932,29155.0,29151.0,0.0110359]
[1609484057803,0.362932,29155.0,29151.0,0.0108359]
[1609484058000,0.362932,29155.0,29151.0,0.0110359]
[1609484059905,0.06738439,29154.0,29151.0,0.0110359]
[1609484060106,0.362932,29153.0,29151.0,0.0110359]
[1609484062034,0.442932,29152.0,29151.0,0.0110359]
[1609484063737,0.442932,29152.0,29151.0,0.8610359]
[1609484064837,0.442932,29152.0,29151.0,0.0110359]
[1609484066773,0.442932,29152.0,29151.0,0.7610359]
[1609484067071,0.08,29152.0,29151.0,0.7610359]
[1609484067374,0.08,29152.0,29151.0,0.0010359]
[1609484067973,0.72380302,29156.0,29151.0,0.0010359]
[1609484067974,0.08,29155.0,29151.0,0.0010359]
[1609484068277,0.33180302,29154.0,29151.0,0.5150359]
[1609484068474,0.362932,29153.0,29151.0,0.5150359]
[1609484069374,0.195,29155.0,29151.0,0.5150359]
[1609484069676,0.362932,29155.0,29151.0,0.5150359]
[1609484071085,1.0,29152.0,29151.0,0.5150359]
[1609484071287,1.0,29152.0,29151.0,0.8306829]
[1609484071689,1.0,29152.0,29151.0,0.8256829]
[1609484074108,1.15,29152.0,29151.0,0.8256829]
[1609484074735,1.15,29152.0,29151.0,0.5050359]
[1609484075136,3.35,29151.0,29149.0,0.0006]
[1609484075342,3.75,29149.0,29146.0,0.0004]
[1609484075544,1.452932,29147.0,29145.0,0.38410558]
[1609484075748,5.91028904,29146.0,29145.0,0.36110558]
[1609484075953,3.68180302,29144.0,29143.0,0.0006]
[1609484076255,3.712932,29141.0,29140.0,0.001]
[1609484076442,3.35,29140.0,29138.0,0.0012]
[1609484076641,5.95473502,29140.0,29138.0,0.0012]
[1609484076951,3.68180302,29138.0,29136.0,0.0016]
[1609484077145,5.47765363,29138.0,29136.0,0.0016]
[1609484077340,6.47765363,29138.0,29136.0,0.0016]
[1609484077544,7.55615039,29138.0,29137.0,0.0004]
[1609484077751,7.55615039,29138.0,29134.0,0.001]
[1609484077752,3.45,29136.0,29134.0,0.001]
[1609484078057,4.15585061,29131.0,29130.0,0.001]
[1609484078244,4.34,29130.0,29127.0,0.0014]
[1609484078447,0.99,29129.0,29127.0,0.0014]
[1609484078648,5.11473502,29129.0,29127.0,0.0014]
[1609484079248,3.68180302,29127.0,29120.0,0.0014]
[1609484079545,6.11453502,29127.0,29120.0,0.0014]
[1609484079747,0.93259966,29125.0,29123.0,0.0002]
[1609484079947,4.35955027,29124.0,29123.0,0.0002]
[1609484080145,5.12585027,29124.0,29123.0,0.0002]
[1609484080393,6.11585027,29124.0,29123.0,0.0002]
[1609484080688,6.11585027,29124.0,29121.0,0.0012]
[1609484080689,4.74353502,29122.0,29121.0,0.0012]
[1609484080879,5.73353502,29122.0,29118.0,0.0004]
[1609484081188,0.53482864,29115.0,29114.0,0.0006]
[1609484081653,0.77473502,29115.0,29114.0,0.0006]
[1609484082453,0.94663166,29115.0,29114.0,0.0006]
[1609484082756,1.26663166,29115.0,29114.0,0.0006]
[1609484083151,1.09473502,29115.0,29114.0,0.0006]
[1609484083353,1.26663166,29115.0,29114.0,0.0006]
[1609484083656,1.90349966,29115.0,29114.0,0.0006]
[1609484083854,1.73160302,29115.0,29114.0,0.0006]
[1609484084052,2.09453502,29115.0,29114.0,0.0006]
[1609484084254,2.43773502,29115.0,29114.0,0.0006]
[1609484084756,2.43773502,29115.0,29103.0,0.0012]
[1609484084757,1.33000302,29114.0,29113.0,0.0004]
[1609484084954,2.23838502,29114.0,29113.0,0.0004]
[1609484085156,2.41028166,29114.0,29113.0,0.0004]
[1609484085355,2.23838502,29114.0,29113.0,0.0004]
[1609484085862,1.33020302,29113.0,29112.0,0.0004]
[1609484086090,1.79020302,29113.0,29103.0,0.0012]
[1609484086291,0.33180302,29112.0,29105.0,0.0004]
[1609484086489,0.265,29111.0,29106.0,0.316229]
[1609484086908,1.0,29108.0,29105.0,0.06101]
[1609484087106,0.33180302,29117.0,29107.0,0.316226]
[1609484087406,0.08,29128.0,29111.0,0.316174]
[1609484087595,0.08,29128.0,29113.0,0.316136]
[1609484087898,0.08,29128.0,29114.0,0.35491793]
[1609484088099,0.08,29128.0,29115.0,0.03346812]
[1609484088301,0.08,29128.0,29116.0,0.3161]
[1609484088499,0.08,29128.0,29116.0,0.41846603]
[1609484088693,0.08,29128.0,29117.0,0.03346812]
[1609484088892,0.08,29128.0,29119.0,1.0]
[1609484089096,0.08,29128.0,29120.0,0.316051]
[1609484089290,0.08,29128.0,29120.0,0.34971912]
[1609484089492,0.08,29128.0,29120.0,0.316251]
[1609484089894,0.08,29128.0,29121.0,1.0]
[1609484090093,0.08,29128.0,29122.0,0.316027]
[1609484090493,0.08,29128.0,29122.0,0.316227]
[1609484091199,1.0,29126.0,29122.0,0.311227]
[1609484091396,1.0,29126.0,29123.0,1.0]
[1609484091623,1.0,29126.0,29125.0,2.160981]
[1609484091918,1.0,29126.0,29125.0,2.26523127]
[1609484092218,1.0,29126.0,29125.0,2.26543127]
[1609484092418,1.0,29126.0,29125.0,3.26543127]
[1609484092621,1.0,29126.0,29125.0,1.311181]
[1609484093821,1.0,29126.0,29125.0,1.4136287]
[1609484094618,1.0,29126.0,29125.0,1.311181]
[1609484095419,1.0,29126.0,29125.0,2.661181]
[1609484095619,1.0,29126.0,29125.0,3.16979265]
[1609484095825,1.0,29126.0,29125.0,1.81979265]
[1609484096033,3.0149014,29126.0,29125.0,0.10381165]
[1609484096226,0.363017,29123.0,29116.0,1.0002]
[1609484096427,0.06738439,29122.0,29116.0,0.0002]
[1609484096891,0.06738439,29122.0,29110.0,0.311156]
[1609484097196,0.06738439,29122.0,29111.0,0.145]
[1609484097197,0.52516277,29114.0,29111.0,0.145]
[1609484097396,0.52516277,29114.0,29113.0,1.711136]
[1609484097991,0.52516277,29114.0,29113.0,1.711336]
[1609484098191,0.52516277,29114.0,29113.0,0.586336]
[1609484098495,1.0,29114.0,29113.0,1.261136]
[1609484098696,1.0,29114.0,29113.0,0.311136]
[1609484098889,0.995,29114.0,29113.0,0.311136]
[1609484102917,0.985,29114.0,29113.0,0.311136]
[1609484103221,1.13,29114.0,29113.0,0.311136]
[1609484103514,0.985,29114.0,29113.0,2.011136]
[1609484103719,0.985,29114.0,29113.0,2.011336]
[1609484103913,0.985,29114.0,29113.0,2.006336]
[1609484104716,0.97966951,29114.0,29113.0,2.001336]
[1609484105118,0.97966951,29114.0,29113.0,0.301336]
[1609484105319,0.97966951,29114.0,29113.0,0.301136]
[1609484105623,1.12466951,29114.0,29113.0,0.301136]
[1609484106220,1.12466951,29114.0,29113.0,1.601136]
[1609484106422,0.97966951,29114.0,29113.0,1.601336]
[1609484107136,0.97966951,29114.0,29113.0,0.301336]
[1609484107341,0.97966951,29114.0,29113.0,0.301136]
[1609484107542,1.31138951,29114.0,29113.0,0.301136]
[1609484107738,1.62574951,29114.0,29113.0,0.301136]
[1609484108335,1.62574951,29114.0,29113.0,0.296136]
[1609484108736,1.51242951,29114.0,29113.0,0.296136]
[1609484109650,0.95966951,29114.0,29113.0,0.296136]
[1609484109950,1.0,29119.0,29113.0,0.45641632]
[1609484110149,1.0,29119.0,29113.0,0.45640632]
[1609484110150,1.0,29114.0,29113.0,0.45640632]
[1609484110445,1.0,29119.0,29118.0,3.646072]
[1609484110647,1.0,29119.0,29118.0,3.74954372]
[1609484110838,1.0,29119.0,29118.0,3.74974372]
[1609484111814,1.0,29119.0,29118.0,3.646272]
[1609484112011,1.0,29119.0,29118.0,4.705672]
[1609484112912,1.0,29119.0,29118.0,4.80721708]
[1609484113715,1.0,29119.0,29118.0,4.80221708]
[1609484113916,1.0,29119.0,29118.0,4.700672]
[1609484114515,1.0,29119.0,29118.0,5.700672]
[1609484115118,1.0,29119.0,29118.0,5.80422614]
[1609484115316,1.0,29119.0,29118.0,5.81507461]
[1609484115512,0.94927823,29119.0,29118.0,5.81507461]
[1609484115715,0.94927823,29119.0,29118.0,5.71152047]
[1609484115922,0.94927823,29119.0,29118.0,2.36152047]
[1609484116139,0.94927823,29119.0,29118.0,1.81652047]
[1609484116335,0.94927823,29119.0,29118.0,0.81652047]
[1609484116539,0.94927823,29119.0,29118.0,0.81632047]
[1609484117936,1.02927823,29119.0,29118.0,0.81632047]
[1609484118636,0.94927823,29119.0,29118.0,0.81132047]
[1609484120240,0.94927823,29119.0,29118.0,3.16132047]
[1609484120438,0.94927823,29119.0,29118.0,3.38152047]
[1609484120638,0.92427823,29119.0,29118.0,4.38152047]
[1609484121340,0.92427823,29119.0,29118.0,3.38152047]
[1609484122065,0.92427823,29119.0,29118.0,4.38152047]
[1609484122863,0.91907823,29119.0,29118.0,4.38152047]
[1609484123567,0.91907823,29119.0,29118.0,4.49597203]
[1609484124666,0.78139514,29121.0,29118.0,4.20990003]
[1609484124867,0.78139514,29121.0,29120.0,3.186048]
[1609484125267,0.78139514,29121.0,29120.0,3.21866361]
[1609484125469,0.78139514,29121.0,29120.0,3.21886361]
[1609484125665,0.78139514,29121.0,29120.0,3.90386361]
[1609484127864,0.78139514,29121.0,29120.0,0.971248]
[1609484128067,0.78139514,29121.0,29120.0,0.286048]
[1609484128068,0.86139514,29121.0,29120.0,0.286048]
[1609484129708,0.985,29122.0,29120.0,0.286048]
[1609484130011,0.49047337,29123.0,29122.0,3.66863761]
[1609484130208,0.49047337,29123.0,29122.0,3.66883761]
[1609484130410,0.49047337,29123.0,29122.0,4.13129761]
[1609484132105,0.49047337,29123.0,29122.0,5.2457367]
[1609484133409,0.48547337,29123.0,29122.0,5.7307367]
[1609484134305,0.48547337,29123.0,29122.0,5.76420482]
[1609484134923,0.48547337,29123.0,29122.0,4.94108739]
[1609484135622,0.48547337,29123.0,29122.0,4.90761927]
[1609484136327,0.47547337,29123.0,29122.0,5.70761927]
[1609484136523,0.47547337,29123.0,29122.0,4.90761927]
[1609484138130,0.47547337,29123.0,29122.0,4.81563627]
[1609484139629,0.47547337,29123.0,29122.0,4.73563627]
[1609484141346,0.47547337,29123.0,29122.0,4.74648329]
[1609484142811,0.47547337,29123.0,29122.0,4.6320442]
[1609484144236,0.61649441,29123.0,29122.0,4.6320442]
[1609484147745,0.61649441,29123.0,29122.0,4.4820442]
[1609484148145,0.61649441,29123.0,29122.0,3.6320442]
[1609484148848,0.61649441,29123.0,29122.0,4.3320442]
[1609484149860,0.47547337,29123.0,29122.0,5.3320442]
[1609484151061,0.61649441,29123.0,29122.0,5.3320442]
[1609484152563,0.61649441,29123.0,29122.0,4.6320442]
[1609484152763,0.47547337,29123.0,29122.0,4.6320442]
[1609484153063,0.47547337,29123.0,29122.0,4.6947679]
[1609484153461,1.26563763,29123.0,29122.0,4.6947679]
[1609484153759,1.40665867,29123.0,29122.0,4.6947679]
[1609484159750,1.26563763,29123.0,29122.0,4.6947679]
[1609484165371,1.26563763,29123.0,29122.0,4.4447679]
[1609484165773,1.26563763,29123.0,29122.0,4.4457679]
[1609484166799,2.25063763,29123.0,29122.0,2.23325272]
[1609484167004,2.25063763,29123.0,29122.0,1.36079272]
[1609484167303,2.25063763,29123.0,29122.0,0.29806902]
[1609484167493,2.62563763,29123.0,29122.0,0.29806902]
[1609484168096,1.64063763,29123.0,29122.0,0.29806902]
[1609484170400,2.62563763,29123.0,29122.0,0.29806902]
[1609484170609,2.62563763,29123.0,29122.0,0.29706902]
[1609484170797,2.62563763,29123.0,29122.0,0.29806902]
[1609484172863,1.64063763,29123.0,29122.0,0.29806902]
[1609484173470,2.62563763,29123.0,29122.0,0.29706902]
[1609484173671,2.62563763,29123.0,29122.0,0.01204702]
[1609484173873,2.62563763,29123.0,29122.0,0.01184702]
[1609484173874,2.98866663,29123.0,29122.0,0.01184702]
[1609484174172,2.62563763,29123.0,29122.0,0.01184702]
[1609484174404,2.62563763,29123.0,29122.0,0.29786902]
[1609484176601,2.62563763,29123.0,29122.0,0.29686902]
[1609484177002,2.62563763,29123.0,29122.0,0.29786902]
[1609484178708,2.62563763,29123.0,29122.0,0.01184702]
[1609484180423,2.62563763,29123.0,29122.0,0.01084702]
[1609484180827,2.62563763,29123.0,29122.0,0.01184702]
[1609484181826,2.62563763,29123.0,29122.0,0.29786902]
[1609484182727,2.62563763,29123.0,29122.0,0.01184702]
[1609484182925,2.98866663,29123.0,29122.0,0.01184702]
[1609484183625,2.98866663,29123.0,29122.0,0.01084702]
[1609484184029,2.98866663,29123.0,29122.0,0.01184702]
[1609484187301,2.98866663,29123.0,29122.0,0.01084702]
[1609484187500,2.15866663,29123.0,29122.0,0.01184702]
[1609484189536,2.15866663,29123.0,29122.0,0.00684702]
[1609484189934,1.79563763,29123.0,29122.0,0.00684702]
[1609484190839,1.79563763,29123.0,29122.0,0.29286902]
[1609484191935,1.64063763,29123.0,29122.0,0.29286902]
[1609484192734,1.64063763,29123.0,29122.0,0.29786911]
[1609484194239,1.26563763,29123.0,29122.0,0.29786911]
[1609484196166,2.25063763,29123.0,29122.0,0.29786911]
[1609484196363,4.05460663,29123.0,29122.0,0.01184711]
[1609484196572,3.40460663,29123.0,29122.0,0.01184711]
[1609484197165,2.61960663,29123.0,29122.0,0.01184711]
[1609484197470,2.50460663,29123.0,29122.0,0.01184711]
[1609484197665,2.14157763,29123.0,29122.0,0.01184711]
[1609484198559,1.95657763,29123.0,29122.0,0.01184711]
[1609484200063,1.95657763,29123.0,29122.0,0.29786911]
[1609484200264,1.76063763,29123.0,29122.0,0.29786911]
[1609484201292,1.26563763,29123.0,29122.0,1.19786911]
[1609484201494,1.26563763,29123.0,29122.0,1.19806911]
[1609484202235,1.26563763,29123.0,29122.0,0.29806911]
[1609484202439,1.26563763,29123.0,29122.0,0.29786911]
[1609484202935,1.48063763,29123.0,29122.0,0.29786911]
[1609484203734,1.26563763,29123.0,29122.0,0.29786911]
[1609484205136,1.26563763,29123.0,29122.0,1.09786911]
[1609484205337,1.26563763,29123.0,29122.0,1.09806911]
[1609484205937,1.26563763,29123.0,29122.0,0.29806911]
[1609484206136,1.26563763,29123.0,29122.0,0.29786911]
[1609484207148,1.26563763,29123.0,29122.0,1.39786911]
[1609484207354,1.26563763,29123.0,29122.0,0.29806911]
[1609484207949,1.26563763,29123.0,29122.0,0.29786911]
[1609484208251,1.26563763,29123.0,29122.0,0.99786911]
[1609484208449,1.26563763,29123.0,29122.0,0.29786911]
[1609484208749,1.60063763,29123.0,29122.0,0.29786911]
[1609484210451,1.26563763,29123.0,29122.0,0.29786911]
[1609484211153,0.741111,29123.0,29122.0,2.94786911]
[1609484211354,0.741111,29123.0,29122.0,0.29806911]
[1609484211977,0.741111,29123.0,29122.0,0.29786911]
[1609484212172,0.741111,29123.0,29122.0,0.84786911]
[1609484212873,0.741111,29123.0,29122.0,0.29786911]
[1609484213078,0.926111,29123.0,29122.0,0.29786911]
[1609484213274,0.741111,29123.0,29122.0,0.29786911]
[1609484215978,0.741111,29123.0,29122.0,1.44786911]
[1609484216182,0.741111,29123.0,29122.0,1.44806911]
[1609484217378,0.741111,29123.0,29122.0,0.29306911]
[1609484217584,0.741111,29123.0,29122.0,0.29286911]
[1609484218580,0.741111,29123.0,29122.0,0.28754928]
[1609484218780,0.741111,29123.0,29122.0,0.29254932]
[1609484218978,1.001111,29123.0,29122.0,0.29254932]
[1609484221748,0.741111,29123.0,29122.0,1.79254932]
[1609484221946,1.0,29124.0,29122.0,1.87274932]
[1609484221947,0.99383,29124.0,29122.0,1.87274932]
[1609484222145,0.95064747,29127.0,29123.0,0.70582746]
[1609484222345,0.76801747,29127.0,29126.0,0.285976]
[1609484222550,0.00617914,29133.0,29126.0,5.27176471]
[1609484222744,0.00617914,29133.0,29130.0,0.285927]
[1609484222948,0.08252627,29141.0,29132.0,0.285903]
[1609484223162,0.08252627,29141.0,29136.0,0.285855]
[1609484223362,0.08252627,29141.0,29137.0,0.285841]
[1609484223664,0.52302339,29138.0,29137.0,0.285841]
[1609484223863,0.52302339,29138.0,29137.0,1.285841]
[1609484224060,0.52302339,29138.0,29137.0,1.530841]
[1609484224262,0.52302339,29138.0,29137.0,1.54168257]
[1609484229400,0.52302339,29138.0,29137.0,1.57515069]
[1609484229799,0.52302339,29138.0,29137.0,1.54168257]
[1609484230401,0.52302339,29138.0,29137.0,1.57515069]
[1609484234311,0.52302339,29138.0,29137.0,1.54168257]
[1609484245817,0.72302339,29138.0,29137.0,1.54168257]
[1609484246218,1.39247203,29138.0,29137.0,1.54168257]
[1609484246621,1.39247203,29138.0,29137.0,2.89168257]
[1609484249876,1.39247203,29138.0,29137.0,3.84168257]
[1609484250674,1.39247203,29138.0,29137.0,4.89168257]
[1609484251172,1.39247203,29138.0,29137.0,3.84168257]
[1609484251477,1.39247203,29138.0,29137.0,2.89168257]
[1609484251673,1.39247203,29138.0,29137.0,2.39168257]
[1609484251874,1.39247203,29138.0,29137.0,1.54168257]
[1609484252674,1.39247203,29138.0,29137.0,3.04168257]
[1609484252876,1.39247203,29138.0,29137.0,1.54168257]
[1609484253575,1.39247203,29138.0,29137.0,2.59168257]
[1609484256597,1.39247203,29138.0,29137.0,1.54168257]
[1609484257398,1.39247203,29138.0,29137.0,1.29668257]
[1609484257399,2.73667203,29138.0,29137.0,1.29668257]
[1609484258196,2.73667203,29138.0,29137.0,0.29668257]
[1609484258395,3.03417203,29138.0,29137.0,0.29668257]
[1609484259208,3.03417203,29138.0,29137.0,1.29668257]
[1609484260100,2.04917203,29138.0,29137.0,1.29668257]
[1609484260943,1.80747203,29138.0,29137.0,1.29668257]
[1609484261542,1.80747203,29138.0,29137.0,1.89668257]
[1609484262589,1.39247203,29138.0,29137.0,1.29668257]
[1609484265925,0.86944864,29138.0,29137.0,1.29668257]
[1609484266428,0.86944864,29138.0,29137.0,3.59668257]
[1609484267031,0.86944864,29138.0,29137.0,1.29668257]
[1609484269539,0.86944864,29138.0,29137.0,4.64668257]
[1609484272047,0.86944864,29138.0,29137.0,4.93668257]
[1609484272444,0.86944864,29138.0,29137.0,1.58668257]
[1609484273447,0.86944864,29138.0,29137.0,3.78668257]
[1609484274250,0.86944864,29138.0,29137.0,1.58668257]
[1609484274451,0.86944864,29138.0,29137.0,2.34668257]
[1609484275448,0.86944864,29138.0,29137.0,3.34668257]
[1609484276294,0.86944864,29138.0,29137.0,4.54668257]
[1609484276698,0.86944864,29138.0,29137.0,4.85668257]
[1609484277515,0.0002,29143.0,29137.0,4.93668257]
[1609484277721,0.0004,29151.0,29138.0,0.48266263]
[1609484277926,0.0006,29154.0,29145.0,3.35]
[1609484278128,0.0004,29155.0,29146.0,5.68027546]
[1609484278319,0.0004,29155.0,29154.0,0.285639]
[1609484278522,0.0004,29155.0,29154.0,3.635639]
[1609484278820,0.0004,29155.0,29154.0,4.62189446]
[1609484281151,0.0004,29155.0,29154.0,5.54189446]
[1609484281753,0.0004,29155.0,29154.0,5.5527298]
[1609484282553,0.0004,29155.0,29154.0,2.02647434]
[1609484282951,0.0004,29155.0,29154.0,2.2027298]
[1609484283156,0.0004,29155.0,29154.0,2.02647434]
[1609484283354,0.0004,29155.0,29154.0,3.6027298]
[1609484283657,0.0004,29155.0,29154.0,2.2027298]
[1609484284055,0.0004,29155.0,29154.0,2.02647434]
[1609484284356,0.0004,29155.0,29154.0,0.29647434]
[1609484285372,0.0004,29155.0,29154.0,3.09647434]
[1609484285673,0.0004,29155.0,29154.0,3.2727298]
[1609484285874,0.0004,29155.0,29154.0,3.09647434]
[1609484286074,0.0004,29155.0,29154.0,3.2727298]
[1609484286279,0.0004,29155.0,29154.0,3.09647434]
[1609484286474,0.0004,29155.0,29154.0,3.2727298]
[1609484286877,0.0004,29155.0,29154.0,3.09647434]
[1609484287075,0.0004,29155.0,29154.0,3.2727298]
[1609484287275,0.0004,29155.0,29154.0,3.10088615]
[1609484287478,0.0004,29155.0,29154.0,3.27714161]
[1609484287680,0.0004,29155.0,29154.0,3.10088615]
[1609484288279,0.0004,29155.0,29154.0,1.30088615]
[1609484288488,0.9854,29155.0,29154.0,1.30088615]
[1609484288884,1.1304,29155.0,29154.0,1.30088615]
[1609484289086,2.0052925,29155.0,29154.0,1.30088615]
[1609484289284,2.5552925,29155.0,29154.0,1.30088615]
[1609484289985,2.0052925,29155.0,29154.0,1.30088615]
[1609484290184,2.1602925,29155.0,29154.0,1.30088615]
[1609484290925,1.1752925,29155.0,29154.0,1.30088615]
[1609484291125,1.0202925,29155.0,29154.0,1.30088615]
[1609484291725,0.8752925,29155.0,29154.0,1.30088615]
[1609484302041,1.1752925,29155.0,29154.0,1.30088615]
[1609484302340,1.3502925,29155.0,29154.0,1.30088615]
[1609484303143,1.0502925,29155.0,29154.0,1.30088615]
[1609484303342,0.8752925,29155.0,29154.0,1.30088615]
[1609484305042,0.8752925,29155.0,29154.0,2.45088615]
[1609484305443,0.8752925,29155.0,29154.0,1.30088615]
[1609484306066,0.8752925,29155.0,29154.0,2.10088615]
[1609484306269,0.8752925,29155.0,29154.0,1.30088615]
[1609484308226,0.8752925,29155.0,29154.0,4.45088615]
[1609484308617,0.8752925,29155.0,29154.0,5.41214161]
[1609484308815,0.8752925,29155.0,29154.0,5.23588615]
[1609484309017,0.8752925,29155.0,29154.0,5.41214161]
[1609484309219,0.8752925,29155.0,29154.0,5.23588615]
[1609484309717,0.8752925,29155.0,29154.0,2.08588615]
[1609484310619,0.8752925,29155.0,29154.0,1.30088615]
[1609484311020,0.8752925,29155.0,29154.0,2.50088615]
[1609484311220,0.8752925,29155.0,29154.0,1.30088615]
[1609484314036,0.8752925,29155.0,29154.0,4.00088615]
[1609484315136,0.8752925,29155.0,29154.0,1.30088615]
[1609484315939,0.8752925,29155.0,29154.0,1.95088615]
[1609484317035,0.8752925,29155.0,29154.0,1.30088615]
[1609484318860,0.8752925,29155.0,29154.0,4.65088615]
[1609484319260,0.8752925,29155.0,29154.0,4.84088615]
[1609484320564,0.8752925,29155.0,29154.0,4.65088615]
[1609484321763,0.8752925,29155.0,29154.0,1.30088615]
[1609484321964,0.8752925,29155.0,29154.0,3.00088615]
[1609484323159,0.8752925,29155.0,29154.0,3.41088615]
[1609484323361,0.8752925,29155.0,29154.0,3.00088615]
[1609484324829,0.8752925,29155.0,29154.0,4.55088615]
[1609484325828,0.8752925,29155.0,29154.0,3.55088615]
[1609484326434,0.8752925,29155.0,29154.0,3.72714161]
[1609484326667,0.8752925,29155.0,29154.0,3.95088615]
[1609484326866,0.8752925,29155.0,29154.0,5.17714161]
[1609484327369,0.8752925,29155.0,29154.0,3.95088615]
[1609484327767,0.8752925,29155.0,29154.0,4.72714161]
[1609484328569,0.8752925,29155.0,29154.0,4.55088615]
[1609484328772,0.8752925,29155.0,29154.0,4.12714161]
[1609484328969,0.8752925,29155.0,29154.0,3.95088615]
[1609484329168,0.8752925,29155.0,29154.0,4.12714161]
[1609484329469,0.8752925,29155.0,29154.0,3.95088615]
[1609484329670,0.8752925,29155.0,29154.0,4.12714161]
[1609484329969,0.8752925,29155.0,29154.0,3.95088615]
[1609484331574,0.8752925,29155.0,29154.0,3.40088615]
[1609484331773,0.8752925,29155.0,29154.0,3.00088615]
[1609484331972,0.8752925,29155.0,29154.0,1.30088615]
[1609484332915,0.8752925,29155.0,29154.0,2.40088615]
[1609484334216,0.8752925,29155.0,29154.0,1.30088615]
[1609484335122,1.8602925,29155.0,29154.0,1.30088615]
[1609484335319,1.1502925,29155.0,29154.0,1.30088615]
[1609484335718,2.1352925,29155.0,29154.0,1.30088615]
[1609484336140,1.1502925,29155.0,29154.0,1.30088615]
[1609484336645,2.6852925,29155.0,29154.0,1.30088615]
[1609484337043,2.6852925,29155.0,29154.0,0.30088615]
[1609484337494,1.7002925,29155.0,29154.0,0.30088615]
[1609484337697,1.1502925,29155.0,29154.0,0.30088615]
[1609484338598,1.1502925,29155.0,29154.0,1.35088615]
[1609484338796,1.1502925,29155.0,29154.0,2.35088615]
[1609484344889,1.1352925,29155.0,29154.0,2.35088615]
[1609484345891,0.8602925,29155.0,29154.0,2.35088615]
[1609484346289,0.8612925,29155.0,29154.0,2.35088615]
[1609484347791,0.8602925,29155.0,29154.0,2.35088615]
[1609484348089,0.8612925,29155.0,29154.0,2.51588615]
[1609484349813,0.8602925,29155.0,29154.0,2.51588615]
[1609484350015,0.8602925,29155.0,29154.0,2.71588615]
[1609484350016,0.8612925,29155.0,29154.0,2.71588615]
[1609484351715,0.8612925,29155.0,29154.0,4.11588615]
[1609484352233,0.8602925,29155.0,29154.0,4.11588615]
[1609484352428,0.8612925,29155.0,29154.0,4.22038158]
[1609484353027,0.8612925,29155.0,29154.0,4.42538158]
[1609484353730,0.8612925,29155.0,29154.0,4.22538158]
[1609484354326,0.8612925,29155.0,29154.0,4.72538158]
[1609484354531,0.8602925,29155.0,29154.0,4.72538158]
[1609484354791,0.8612925,29155.0,29154.0,4.72538158]
[1609484355695,0.8612925,29155.0,29154.0,3.02538158]
[1609484356000,0.8612925,29155.0,29154.0,2.72088615]
[1609484356197,0.8602925,29155.0,29154.0,2.92088615]
[1609484356394,0.8602925,29155.0,29154.0,4.12088615]
[1609484356597,0.8602925,29155.0,29154.0,3.27088615]
[1609484356795,0.8602925,29155.0,29154.0,2.92088615]
[1609484356996,0.8612925,29155.0,29154.0,2.72088615]
[1609484357297,0.8612925,29155.0,29154.0,3.17523655]
[1609484357496,0.8612925,29155.0,29154.0,4.12523655]
[1609484357696,0.8612925,29155.0,29154.0,4.02088615]
[1609484358300,0.8612925,29155.0,29154.0,4.25057934]
[1609484358514,0.8612925,29155.0,29154.0,3.50057934]
[1609484358715,0.8602925,29155.0,29154.0,3.50057934]
[1609484359017,0.8612925,29155.0,29154.0,2.95057934]
[1609484359414,0.8612925,29155.0,29154.0,2.72088615]
[1609484360219,0.8612925,29155.0,29154.0,2.35088615]
[1609484362821,0.8612925,29155.0,29154.0,2.78051615]
[1609484363020,0.8612925,29155.0,29154.0,3.36263615]
[1609484363419,0.8612925,29155.0,29154.0,5.61263615]
[1609484363724,0.8612925,29155.0,29154.0,5.71700912]
[1609484364962,0.8612925,29155.0,29154.0,3.46700912]
[1609484365363,0.8612925,29155.0,29154.0,4.21700912]
[1609484366567,0.8612925,29155.0,29154.0,3.46700912]
[1609484366966,0.8612925,29155.0,29154.0,3.40488912]
[1609484367409,0.8562925,29155.0,29154.0,2.97525912]
[1609484368005,0.8562925,29155.0,29154.0,2.87088615]
[1609484368203,0.8562925,29155.0,29154.0,2.35088615]
[1609484370049,0.5191025,29155.0,29154.0,4.15088615]
[1609484370452,0.5191025,29155.0,29154.0,2.35088615]